Workbook

Sheet هيئة
E1: هيئة
A2: اسم الصنف | B2: الوحدة | C2: طهطا | E2: طما | G2: المراغة | I2: جهينة | K2: الأجمالى
C3: الكمية | D3: عدد الحالات | E3: الكمية | F3: عدد الحالات | G3: الكمية | H3: عدد الحالات | I3: الكمية | J3: عدد الحالات | K3: الكمية | L3: عدد الحالات
A4: انسولين H Max | B4: فيال | C4: 0 | D4: 0 | E4: 419 | F4: 140 | G4: 419 | H4: 139 | I4: 0 | J4: 0 | K4: =C4+E4+G4+I4 -> 838 | L4: 279
A5: انسولين ماكسيتارد100 | B5: فيال | C5: 110 | D5: 37 | E5: 42 | F5: 14 | G5: 110 | H5: 36 | I5: 0 | J5: 0 | K5: 262 | L5: 87
A6: هيمولين | B6: فيال | C6: 612 | D6: 204 | E6: 0 | F6: 0 | G6: 0 | H6: 0 | I6: 0 | J6: 0 | K6: 612 | L6: 204
A7: أنسولينا جيت | B7: فيال | C7: 0 | D7: 0 | E7: 0 | F7: 0 | G7: 0 | H7: 0 | I7: 165 | J7: 55 | K7: 165 | L7: 55
K8: 0 | L8: 0

Sheet طلاب ورضع
H1: طلاب ورضع
A2: اسم الصنف | B2: الوحدة | C2: طهطا | G2: طما | K2: المراغة | O2: جهينة | S2: الأجمالى
C3: طلاب | E3: رضع | G3: طلاب | I3: رضع | K3: طلاب | M3: رضع | O3: طلاب | Q3: رضع | S3: طلاب | U3: رضع
C4: كمية | D4: ع.حالات | E4: كمية | F4: ع.حالات | G4: كمية | H4: ع.حالات | I4: كمية | J4: ع.حالات | K4: كمية | L4: ع. الحالات | M4: كمية | N4: عددحالات | O4: كمية | P4: ع. الحالات | Q4: كميىة | R4: ع.حالات | S4: كمية | T4: ع. الحالات | U4: كميىة | V4: ع.حالات
A5: انسولين ماكسيتارد100 | B5: فيال | C5: 25 | D5: 8 | E5: 0 | F5: 0 | G5: 15 | H5: 5 | I5: 3 | J5: 1 | K5: 3 | L5: 1 | M5: 0 | N5: 0 | O5: 0 | P5: 0 | Q5: 0 | R5: 0 | S5: =C5+G5+K5+O5 -> 43 | T5: =D5+H5+L5+P5 -> 14 | U5: =I5+M5+Q5+Q5 -> 3 | V5: =F5+J5+N5+R5 -> 1
A6: انسولين H Max | B6: فيال | C6: 0 | D6: 0 | E6: 0 | F6: 0 | G6: 0 | H6: 0 | I6: 0 | J6: 0 | K6: 0 | L6: 0 | M6: 0 | N6: 0 | O6: 3 | P6: 1 | Q6: 0 | R6: 0 | S6: =C6+G6+K6+O6 -> 3 | T6: =D6+H6+L6+P6 -> 1 | U6: =I6+M6+Q6+Q6 -> 0 | V6: =F6+J6+N6+R6 -> 0
A7: أنسيومان كومب | B7: فيال | C7: 0 | D7: 0 | E7: 0 | F7: 0 | G7: 0 | H7: 0 | I7: 0 | J7: 0 | K7: 12 | L7: 8 | M7: 0 | N7: 0 | O7: 0 | P7: 0 | Q7: 0 | R7: 0 | S7: =C7+G7+K7+O7 -> 12 | T7: 8 | U7: 0 | V7: 0
A8: أكترابيد بنفل | B8: خرطوشة | C8: 249 | D8: 50 | E8: 16 | F8: 4 | G8: 121 | H8: 6 | I8: 18 | J8: 6 | K8: 104 | L8: 17 | M8: 7 | N8: 2 | O8: 0 | P8: 0 | Q8: 0 | R8: 0 | S8: 474 | T8: 73 | U8: 25 | V8: 12
A9: أنسيوليتا رد بنفل | B9: خرطوشة | C9: 30 | D9: 9 | E9: 2 | F9: 1 | G9: 21 | H9: 4 | I9: 3 | J9: 1 | K9: 0 | L9: 0 | M9: 0 | N9: 0 | O9: 0 | P9: 0 | Q9: 0 | R9: 0 | S9: 51 | T9: 13 | U9: 3 | V9: 2
A10: ماكسيتارد بنفل | B10: خرطوشة | C10: 309 | D10: 34 | E10: 0 | F10: 0 | G10: 32 | H10: 4 | I10: 10 | J10: 4 | K10: 0 | L10: 0 | M10: 0 | N10: 0 | O10: 0 | P10: 0 | Q10: 0 | R10: 0 | S10: 341 | T10: 38 | U10: 10 | V10: 4
A11: أنسيومان كومب بنفل | B11: خرطوشة | C11: 0 | D11: 0 | E11: 0 | F11: 0 | G11: 204 | H11: 25 | I11: 0 | J11: 0 | K11: 30 | L11: 4 | M11: 0 | N11: 0 | O11: 137 | P11: 14 | Q11: 0 | R11: 0 | S11: 371 | T11: 43 | U11: 0 | V11: 0
A12: انسيومان رابيد بنفل | B12: 0 | C12: 0 | D12: 0 | E12: 0 | F12: 0 | G12: 0 | H12: 0 | I12: 0 | J12: 0 | K12: 13 | L12: 2 | M12: 0 | N12: 0 | O12: 77 | P12: 11 | Q12: 0 | R12: 0 | S12: 90 | T12: 13 | U12: 0 | V12: 0
A13: انسيومان بازل بنفل | B13: خرطوشة | C13: 0 | D13: 0 | E13: 0 | F13: 0 | G13: 0 | H13: 0 | I13: 0 | J13: 0 | K13: 37 | L13: 4 | M13: 0 | N13: 0 | O13: 25 | P13: 4 | Q13: 0 | R13: 0 | S13: 62 | T13: 8 | U13: 0 | V13: 0

Sheet صيدليات الهيئة
D1: صيدليات الهيئة
A2: م | B2: العيادة | D2: أدوية | F2: مستلزمات | H2: مرأة معيلة
A3: 1 | B3: عيادة المراغة الشاملة | D3: 265371.778 | F3: 1075.463 | H3: 0
A4: 2 | B4: عيادة طما الشاملة | D4: 120514.6 | F4: 14000 | H4: 42
A5: 3 | B5: عيادة طهطا الشاملة | D5: 188421.51 | F5: 53.988 | H5: 0
A6: 4 | B6: عيادة جهينة الشاملة | D6: 28117.515 | F6: 0 | H6: 0
A7: الأجمالى | D7: =SUM(D3:D6) -> 602425.403 | F7: =SUM(F3:F6) -> 15129.451 | H7: =SUM(H3:H6) -> 42

Sheet صيدليات الطلاب والرضع
C1: صيدليات الطلاب والرضع
A2: م | B2: العيادة | D2: طلاب | H2: رضع
D3: أدوية | F3: مستلزمات | H3: أدوية | I3: مستلزمات
A4: 1 | B4: عيادة طهطا الشاملة | D4: 76399.327 | F4: 856.96 | H4: 5032.345 | I4: 0
A5: 2 | B5: عيادة طما الشاملة | D5: 46085.491 | F5: 1397.66 | H5: 6803.3 | I5: 663.17
A6: 3 | B6: عيادة المراغة الشاملة | D6: 59356.8 | F6: 751.76 | H6: 10877.1 | I6: 0
A7: 4 | B7: عيادة جهينة الشاملة | D7: 18400.9 | F7: 0 | H7: 6647.1 | I7: 0
A8: الأجمالى | D8: =SUM(D4:D7) -> 200242.518 | F8: =SUM(F4:F7) -> 3006.38 | H8: =SUM(H4:H7) -> 29359.845 | I8: =SUM(I4:I7) -> 663.17

Sheet ورقة5
D1: الأسبوع الأول | N1: الأسبوع الثانى | X1: الأسبوع الثالث | AH1: الأسبوع الرابع
A2: م | B2: نموذج 56 ج | F2: نموذج 56 ب | K2: م | L2: نموذج 56 ج | P2: نموذج 56 ب | U2: م | V2: نموذج 56 ج | Z2: نموذج 56 ب | AE2: م | AF2: نموذج 56 ج | AJ2: نموذج 56 ب
B3: هيئة | C3: مراة معيلة | D3: طلاب | E3: رضع | F3: هيئة | G3: مراة معيلة | H3: طلاب | I3: رضع | L3: هيئة | M3: مراة معيلة | N3: طلاب | O3: رضع | P3: هيئة | Q3: مراة معيلة | R3: طلاب | S3: رضع | V3: هيئة | W3: مراة معيلة | X3: طلاب | Y3: رضع | Z3: هيئة | AA3: مراة معيلة | AB3: طلاب | AC3: رضع | AF3: هيئة | AG3: مراة معيلة | AH3: طلاب | AI3: رضع | AJ3: هيئة | AK3: مراة معيلة | AL3: طلاب | AM3: رضع
A4: 1 | B4: 115 | D4: 39 | F4: 4 | H4: 2 | K4: 1 | L4: 251 | N4: 27 | O4: 12 | P4: 3 | R4: 1 | U4: 1 | V4: 274 | X4: 34 | Y4: 9 | Z4: 4 | AB4: 1 | AE4: 1 | AF4: 261 | AH4: 29 | AI4: 14 | AJ4: 5
A5: 2 | B5: 381 | D5: 82 | E5: 21 | F5: 24 | K5: 2 | L5: 435 | N5: 45 | O5: 29 | P5: 7 | R5: 2 | U5: 2 | V5: 356 | X5: 27 | Y5: 6 | Z5: 6 | AB5: 3 | AE5: 2 | AF5: 362 | AH5: 50 | AI5: 18 | AJ5: 2 | AL5: 1
A6: 3 | B6: 500 | D6: 70 | F6: 58 | H6: 8 | K6: 3 | L6: 400 | N6: 68 | O6: 20 | P6: 18 | R6: 1 | S6: 1 | U6: 3 | V6: 390 | X6: 56 | Y6: 21 | Z6: 12 | AB6: 3 | AE6: 3 | AF6: 395 | AH6: 31 | AI6: 13 | AJ6: 13
A7: 4 | B7: 302 | D7: 31 | E7: 7 | F7: 7 | H7: 2 | K7: 4 | L7: 620 | N7: 65 | P7: 40 | R7: 7 | U7: 4 | V7: 700 | X7: 79 | Z7: 35 | AB7: 4 | AE7: 4 | AF7: 618 | AH7: 55 | AI7: 15 | AJ7: 33 | AL7: 1
AE8: 5 | AF8: 385 | AJ8: 4
B25: =SUM(B4:B24) -> 1298 | C25: =SUM(C4:C24) -> 0 | D25: 222 | E25: 28 | F25: 93 | G25: 0 | H25: 12 | I25: 0 | L25: =SUM(L4:L24) -> 1706 | M25: =SUM(M4:M24) -> 0 | N25: 205 | O25: 61 | P25: 68 | Q25: 0 | R25: 11 | S25: 1 | V25: =SUM(V4:V24) -> 1720 | W25: =SUM(W4:W24) -> 0 | X25: 196 | Y25: 36 | Z25: 57 | AA25: 0 | AB25: 11 | AC25: 0 | AF25: =SUM(AF4:AF24) -> 2021 | AG25: =SUM(AG4:AG24) -> 0 | AH25: 165 | AI25: 60 | AJ25: 57 | AK25: 0 | AL25: 2 | AM25: 0

Sheet ورقة6
B1: هرمون النمو | G1: فيربروكس | L1: كيلفر | Q1: ديسفرال | V1: الريبافيرين | AA1: اكسجيت500 | AF1: اكسجيت250 | AK1: اكسجيت125
A2: الوحدة | B2: الكمية | C2: عدد الحالات | D2: التكلفة | F2: الوحدة | G2: الكمية | H2: عدد الحالات | I2: التكلفة | K2: الوحدة | L2: الكمية | M2: عدد الحالات | N2: التكلفة | P2: الوحدة | Q2: الكمية | R2: عدد الحالات | S2: التكلفة | U2: الوحدة | V2: الكمية | W2: عدد الحالات | X2: التكلفة | Z2: الوحدة | AA2: الكمية | AB2: عدد الحالات | AC2: التكلفة | AE2: الوحدة | AF2: الكمية | AG2: عدد الحالات | AH2: التكلفة | AJ2: الوحدة | AK2: الكمية | AL2: عدد الحالات | AM2: التكلفة
A3: فيال | B3: 105 | C3: 5 | D3: 4714.5 | U3: ش×6ق | V3: 519 | X3: 2143.47 | Z3: ش×7ق | AA3: 65 | AC3: 16791.645 | AE3: ش×7ق | AF3: 35 | AH3: 4666.655
A4: فيال | B4: 9 | C4: 1 | D4: 404.1 | U4: ش×6ق | V4: 140 | X4: 592.2 | Z4: ش×7ق | AA4: 13 | AC4: 3358.29 | AE4: ش×7ق | AF4: 12 | AH4: 1599.996
A5: فيال | B5: 234 | C5: 14 | D5: 11583 | U5: ش×6ق | V5: 162 | X5: 669.1 | Z5: ش×7ق | AA5: 52 | AC5: 13433.368 | AE5: ش×7ق | AF5: 40 | AH5: 5333.32
A6: فيال | B6: 213 | C6: 11 | D6: 10543.5 | Z6: ش×7ق | AA6: 88 | AC6: 22733.392 | AE6: ش×7ق | AF6: 12 | AH6: 1599.996
A7: فيال | B7: 307 | C7: 15 | D7: 15196.5 | Z7: ش×7ق | AA7: 16 | AC7: 4133.344
B22: =SUM(B3:B21) -> 868 | C22: =SUM(C3:C21) -> 46 | D22: 42441.6 | G22: =SUM(G3:G21) -> 0 | H22: 0 | I22: 0 | L22: =SUM(L3:L21) -> 0 | M22: 0 | N22: 0 | Q22: =SUM(Q3:Q21) -> 0 | R22: =SUM(R3:R21) -> 0 | S22: =SUM(S3:S21) -> 0 | V22: =SUM(V3:V21) -> 821 | W22: 0 | X22: 3404.77 | AA22: =SUM(AA3:AA21) -> 234 | AB22: 0 | AC22: 60450.039 | AF22: =SUM(AF3:AF21) -> 99 | AG22: 0 | AH22: 13199.967 | AK22: =SUM(AK3:AK21) -> 0 | AL22: 0 | AM22: 0

Sheet التذاكر
A1: الأسبوع | C1: نموذج 56 ج | F1: نموذج 56ب
B2: هيئة | C2: مرأة معيلة | D2: طلاب | E2: رضع | F2: هيئة | G2: مرأة معيلة | H2: طلاب | I2: رضع
A3: الأسبوع الأول | B3: 1298 | C3: 0 | D3: 222 | E3: 28 | F3: 93 | G3: 0 | H3: 12 | I3: 0
A4: الأسبوع الثانى | B4: 1706 | C4: 0 | D4: 205 | E4: 61 | F4: 68 | G4: 0 | H4: 11 | I4: 1
A5: الأسبوع الثالث | B5: 1720 | C5: 0 | D5: 196 | E5: 36 | F5: 57 | G5: 0 | H5: 11 | I5: 0
A6: الأسبوع الرابع | B6: 2021 | C6: 0 | D6: 165 | E6: 60 | F6: 57 | G6: 0 | H6: 2 | I6: 0
